[Event "Titled Tuesday Blitz March 21 Late 2023"]
[White "Ronka, Erik"]
[Black "Kuznetsov, Felix"]
[WhiteFideId "505080"]
[BlackFideId "34147990"]
[WhiteElo "2264"]
[BlackElo "2235"]
[Result "1-0"]
[Round "01"]
[TimeControl "180+2"]
[Date "2023.03.21"]
[WhiteClock "0:00:05"]
[BlackClock "0:00:05"]

1. e4 {[%clk 0:02:59]}  c5 {[%clk 0:03:00]} 2. Nf3 {[%clk 0:02:59]}  Nc6 {[%clk 0:02:58]} 3. d4 {[%clk 0:02:59]}  cxd4 {[%clk 0:02:58]} 4. Nxd4 {[%clk 0:03:00]}  Nf6 {[%clk 0:02:57]} 5. Nc3 {[%clk 0:03:00]}  d6 {[%clk 0:02:57]} 6. Bg5 {[%clk 0:03:00]}  e6 {[%clk 0:02:55]} 7. Qd2 {[%clk 0:03:00]}  a6 {[%clk 0:02:54]} 8. O-O-O {[%clk 0:03:00]}  Bd7 {[%clk 0:02:54]} 9. f4 {[%clk 0:03:00]}  b5 {[%clk 0:02:54]} 10. Bxf6 {[%clk 0:02:58]}  gxf6 {[%clk 0:02:53]} 11. Kb1 {[%clk 0:02:58]}  Qb6 {[%clk 0:02:51]} 12. Nxc6 {[%clk 0:02:58]}  Bxc6 {[%clk 0:02:51]} 13. f5 {[%clk 0:02:59]}  b4 {[%clk 0:02:51]} 14. Ne2 {[%clk 0:02:58]}  e5 {[%clk 0:02:52]} 15. Ng3 {[%clk 0:02:57]}  h5 {[%clk 0:02:49]} 16. h4 {[%clk 0:02:57]}  Qc5 {[%clk 0:02:45]} 17. Qe2 {[%clk 0:02:42]}  Bb5 {[%clk 0:02:13]} 18. Qf3 {[%clk 0:02:06]}  Rc8 {[%clk 0:02:11]} 19. Bd3 {[%clk 0:01:38]}  Ke7 {[%clk 0:02:03]} 20. Rhe1 {[%clk 0:00:58]}  Bh6 {[%clk 0:01:43]} 21. Nxh5 {[%clk 0:00:52]}  Be3 {[%clk 0:01:03]} 22. Qxe3 {[%clk 0:00:26]}  Qxe3 {[%clk 0:01:01]} 23. Rxe3 {[%clk 0:00:27]}  Rxh5 {[%clk 0:00:58]} 24. g3 {[%clk 0:00:25]}  Rh7 {[%clk 0:00:25]} 25. Bxb5 {[%clk 0:00:20]}  axb5 {[%clk 0:00:26]} 26. Red3 {[%clk 0:00:21]}  Rg7 {[%clk 0:00:21]} 27. b3 {[%clk 0:00:17]}  Rg4 {[%clk 0:00:14]} 28. Re3 {[%clk 0:00:16]}  Rc3 {[%clk 0:00:14]} 29. Rxc3 {[%clk 0:00:06]}  bxc3 {[%clk 0:00:15]} 30. Rd3 {[%clk 0:00:07]}  b4 {[%clk 0:00:12]} 31. a3 {[%clk 0:00:07]}  bxa3 {[%clk 0:00:06]} 32. Rxc3 {[%clk 0:00:06]}  Rxe4 {[%clk 0:00:07]} 33. Ka2 {[%clk 0:00:05]}  d5 {[%clk 0:00:07]} 34. Kxa3 {[%clk 0:00:05]}  d4 {[%clk 0:00:08]} 35. Rd3 {[%clk 0:00:05]}  Re2 {[%clk 0:00:06]} 36. c4 {[%clk 0:00:04]}  Kd6 {[%clk 0:00:05]} 37. Kb4 {[%clk 0:00:03]}  Kc6 {[%clk 0:00:02]} 38. h5 {[%clk 0:00:04]}  Rh2 {[%clk 0:00:02]} 39. g4 {[%clk 0:00:04]}  Rh4 {[%clk 0:00:02]} 40. Rg3 {[%clk 0:00:04]}  e4 {[%clk 0:00:03]} 41. c5 {[%clk 0:00:04]}  e3 {[%clk 0:00:03]} 42. Kc4 {[%clk 0:00:04]}  e2 {[%clk 0:00:03]} 43. Rg1 {[%clk 0:00:05]}  Rxg4 {[%clk 0:00:04]} 44. Re1 {[%clk 0:00:05]}  Re4 {[%clk 0:00:03]} 45. Kd3 {[%clk 0:00:05]}  Rf4 {[%clk 0:00:04]} 46. Rxe2 {[%clk 0:00:05]}  Rxf5 {[%clk 0:00:04]} 47. b4 {[%clk 0:00:05]}  Rxh5 {[%clk 0:00:05]} 48. Kxd4 {[%clk 0:00:05]}  Rh4+ {[%clk 0:00:05]} 49. Re4 {[%clk 0:00:05]}  Rh3 {[%clk 0:00:05]} 50. Rf4 {[%clk 0:00:05]}  Rh6 {[%clk 0:00:05]} 51. Kc4 {[%clk 0:00:05]}  Rg6 {[%clk 0:00:04]} 52. b5+ {[%clk 0:00:05]}  Kc7 {[%clk 0:00:05]} 53. Kd5 {[%clk 0:00:05]}  Rg5+ {[%clk 0:00:05]} 54. Kc4 {[%clk 0:00:06]}  f5 {[%clk 0:00:06]} 55. Kd5 {[%clk 0:00:06]}  Rh5 {[%clk 0:00:05]} 56. Ke5 {[%clk 0:00:06]}  Rh1 {[%clk 0:00:04]} 57. Rxf5 {[%clk 0:00:06]}  Rc1 {[%clk 0:00:05]} 58. Rxf7+ {[%clk 0:00:06]}  Kd8 {[%clk 0:00:06]} 59. Kd6 {[%clk 0:00:06]}  Rh1 {[%clk 0:00:05]} 60. Rf8# {[%clk 0:00:05]} 1-0


[Site "https://www.chess.com"]

[Event "Titled Tuesday Blitz March 21 Late 2023"]
[White "Yuan, Qingyu"]
[Black "Szente Varga, Fruzsina"]
[WhiteFideId "8609772"]
[BlackFideId "712264"]
[WhiteElo "2359"]
[BlackElo "1994"]
[Result "1-0"]
[Round "01"]
[TimeControl "180+2"]
[Date "2023.03.21"]
[WhiteClock "0:00:07"]
[BlackClock "0:00:08"]

1. e4 {[%clk 0:03:00]}  e5 {[%clk 0:02:56]} 2. Nf3 {[%clk 0:03:01]}  Nc6 {[%clk 0:02:54]} 3. Bb5 {[%clk 0:03:02]}  a6 {[%clk 0:02:52]} 4. Ba4 {[%clk 0:03:02]}  Nf6 {[%clk 0:02:52]} 5. d3 {[%clk 0:02:59]}  d6 {[%clk 0:02:50]} 6. c3 {[%clk 0:02:57]}  Be7 {[%clk 0:02:49]} 7. O-O {[%clk 0:02:57]}  O-O {[%clk 0:02:49]} 8. Re1 {[%clk 0:02:57]}  b5 {[%clk 0:02:45]} 9. Bc2 {[%clk 0:02:57]}  Bg4 {[%clk 0:02:45]} 10. h3 {[%clk 0:02:53]}  Bxf3 {[%clk 0:02:41]} 11. Qxf3 {[%clk 0:02:54]}  b4 {[%clk 0:02:41]} 12. Nd2 {[%clk 0:02:49]}  Rb8 {[%clk 0:02:38]} 13. Nc4 {[%clk 0:02:44]}  Qd7 {[%clk 0:02:06]} 14. Ba4 {[%clk 0:02:27]}  Nd4 {[%clk 0:01:46]} 15. Qd1 {[%clk 0:02:27]}  Nb5 {[%clk 0:01:44]} 16. Bd2 {[%clk 0:02:27]}  bxc3 {[%clk 0:01:44]} 17. bxc3 {[%clk 0:02:27]}  c6 {[%clk 0:01:44]} 18. Qc1 {[%clk 0:02:12]}  Qc7 {[%clk 0:01:38]} 19. Ne3 {[%clk 0:02:06]}  Rfe8 {[%clk 0:01:37]} 20. Nf5 {[%clk 0:02:06]}  Bf8 {[%clk 0:01:38]} 21. Rb1 {[%clk 0:01:40]}  Rb7 {[%clk 0:01:07]} 22. c4 {[%clk 0:01:35]}  Na7 {[%clk 0:01:04]} 23. Rxb7 {[%clk 0:01:31]}  Qxb7 {[%clk 0:01:05]} 24. Bc3 {[%clk 0:01:19]}  Nd7 {[%clk 0:01:05]} 25. Qg5 {[%clk 0:01:13]}  Nc5 {[%clk 0:00:57]} 26. Bc2 {[%clk 0:01:10]}  Ne6 {[%clk 0:00:55]} 27. Qg3 {[%clk 0:01:09]}  Kh8 {[%clk 0:00:54]} 28. Rb1 {[%clk 0:01:09]}  Qc7 {[%clk 0:00:53]} 29. Ba4 {[%clk 0:01:00]}  Rb8 {[%clk 0:00:51]} 30. Rb3 {[%clk 0:00:55]}  Nc5 {[%clk 0:00:48]} 31. Rxb8 {[%clk 0:00:47]}  Qxb8 {[%clk 0:00:48]} 32. Bc2 {[%clk 0:00:47]}  Ne6 {[%clk 0:00:43]} 33. Qe3 {[%clk 0:00:43]}  c5 {[%clk 0:00:42]} 34. g3 {[%clk 0:00:35]}  Nc6 {[%clk 0:00:42]} 35. Qc1 {[%clk 0:00:33]}  g6 {[%clk 0:00:41]} 36. Ne3 {[%clk 0:00:33]}  Ncd4 {[%clk 0:00:41]} 37. Bd1 {[%clk 0:00:32]}  Bh6 {[%clk 0:00:38]} 38. Qb2 {[%clk 0:00:31]}  Qxb2 {[%clk 0:00:36]} 39. Bxb2 {[%clk 0:00:32]}  Kg8 {[%clk 0:00:30]} 40. Nd5 {[%clk 0:00:27]}  Kf8 {[%clk 0:00:24]} 41. Bc3 {[%clk 0:00:26]}  Bg7 {[%clk 0:00:21]} 42. Kf1 {[%clk 0:00:25]}  Ke8 {[%clk 0:00:20]} 43. Ba5 {[%clk 0:00:22]}  Kd7 {[%clk 0:00:21]} 44. Ba4+ {[%clk 0:00:22]}  Kc8 {[%clk 0:00:16]} 45. Be8 {[%clk 0:00:15]}  f5 {[%clk 0:00:16]} 46. Ne7+ {[%clk 0:00:11]}  Kb7 {[%clk 0:00:15]} 47. Bd7 {[%clk 0:00:09]}  fxe4 {[%clk 0:00:13]} 48. dxe4 {[%clk 0:00:10]}  Nc7 {[%clk 0:00:13]} 49. Bc8+ {[%clk 0:00:09]}  Kb8 {[%clk 0:00:13]} 50. Bd7 {[%clk 0:00:09]}  Kb7 {[%clk 0:00:13]} 51. Kg2 {[%clk 0:00:09]}  Bf8 {[%clk 0:00:11]} 52. Nd5 {[%clk 0:00:06]}  Nxd5 {[%clk 0:00:12]} 53. exd5 {[%clk 0:00:05]}  Bg7 {[%clk 0:00:12]} 54. h4 {[%clk 0:00:05]}  Nc2 {[%clk 0:00:13]} 55. h5 {[%clk 0:00:04]}  Na3 {[%clk 0:00:12]} 56. hxg6 {[%clk 0:00:04]}  hxg6 {[%clk 0:00:13]} 57. Bc3 {[%clk 0:00:04]}  Nxc4 {[%clk 0:00:13]} 58. Be8 {[%clk 0:00:04]}  g5 {[%clk 0:00:13]} 59. Kh3 {[%clk 0:00:04]}  Bf6 {[%clk 0:00:11]} 60. Kg4 {[%clk 0:00:05]}  Nb6 {[%clk 0:00:12]} 61. Bc6+ {[%clk 0:00:04]}  Kc7 {[%clk 0:00:12]} 62. Kf5 {[%clk 0:00:05]}  Bd8 {[%clk 0:00:12]} 63. Ke6 {[%clk 0:00:04]}  Nc4 {[%clk 0:00:12]} 64. g4 {[%clk 0:00:04]}  e4 {[%clk 0:00:11]} 65. Be8 {[%clk 0:00:02]}  Kb6 {[%clk 0:00:11]} 66. Kf5 {[%clk 0:00:02]}  a5 {[%clk 0:00:11]} 67. Kxe4 {[%clk 0:00:02]}  Kc7 {[%clk 0:00:11]} 68. Kd3 {[%clk 0:00:03]}  Nb6 {[%clk 0:00:10]} 69. Bf7 {[%clk 0:00:03]}  a4 {[%clk 0:00:08]} 70. Be6 {[%clk 0:00:03]}  Kb7 {[%clk 0:00:08]} 71. Ke4 {[%clk 0:00:03]}  Nc4 {[%clk 0:00:09]} 72. f4 {[%clk 0:00:04]}  gxf4 {[%clk 0:00:09]} 73. Kxf4 {[%clk 0:00:05]}  a3 {[%clk 0:00:08]} 74. g5 {[%clk 0:00:05]}  Ne5 {[%clk 0:00:07]} 75. Kf5 {[%clk 0:00:04]}  Nf3 {[%clk 0:00:06]} 76. Bf6 {[%clk 0:00:03]}  Nh4+ {[%clk 0:00:06]} 77. Kg4 {[%clk 0:00:03]}  Bxf6 {[%clk 0:00:05]} 78. gxf6 {[%clk 0:00:03]}  Ng6 {[%clk 0:00:06]} 79. Kg5 {[%clk 0:00:03]}  Nf8 {[%clk 0:00:06]} 80. Bf5 {[%clk 0:00:03]}  c4 {[%clk 0:00:06]} 81. Kh6 {[%clk 0:00:03]}  Kc7 {[%clk 0:00:06]} 82. Kg7 {[%clk 0:00:04]}  Nd7 {[%clk 0:00:05]} 83. Bxd7 {[%clk 0:00:04]}  Kxd7 {[%clk 0:00:06]} 84. f7 {[%clk 0:00:04]}  c3 {[%clk 0:00:07]} 85. f8=Q {[%clk 0:00:05]}  c2 {[%clk 0:00:07]} 86. Qf5+ {[%clk 0:00:06]}  Kc7 {[%clk 0:00:08]} 87. Qxc2+ {[%clk 0:00:07]} 1-0


[Site "https://www.chess.com"]

[Event "Titled Tuesday Blitz March 21 Late 2023"]
[White "Melikhov, Evgeny V."]
[Black "Tanenbaum, Zachary"]
[WhiteFideId "4122046"]
[BlackFideId "2060850"]
[WhiteElo "2158"]
[BlackElo "2175"]
[Result "0-1"]
[Round "01"]
[TimeControl "180+2"]
[Date "2023.03.21"]
[WhiteClock "0:00:01"]
[BlackClock "0:01:16"]

1. d4 {[%clk 0:02:59]}  d5 {[%clk 0:02:59]} 2. c4 {[%clk 0:02:59]}  dxc4 {[%clk 0:03:00]} 3. Nf3 {[%clk 0:02:59]}  Nf6 {[%clk 0:03:00]} 4. e3 {[%clk 0:02:59]}  Bg4 {[%clk 0:03:01]} 5. Bxc4 {[%clk 0:02:58]}  e6 {[%clk 0:03:01]} 6. h3 {[%clk 0:02:53]}  Bh5 {[%clk 0:03:01]} 7. Nc3 {[%clk 0:02:43]}  Bb4 {[%clk 0:02:58]} 8. Qa4+ {[%clk 0:02:35]}  Nc6 {[%clk 0:02:59]} 9. Ne5 {[%clk 0:02:34]}  Bxc3+ {[%clk 0:02:58]} 10. bxc3 {[%clk 0:02:33]}  O-O {[%clk 0:02:43]} 11. Nxc6 {[%clk 0:02:26]}  bxc6 {[%clk 0:02:44]} 12. Qxc6 {[%clk 0:02:05]}  Nd5 {[%clk 0:02:41]} 13. Bd2 {[%clk 0:01:54]}  Qg5 {[%clk 0:02:21]} 14. O-O {[%clk 0:01:53]}  Bf3 {[%clk 0:02:19]} 15. g3 {[%clk 0:01:47]}  Qf5 {[%clk 0:02:16]} 16. Kh2 {[%clk 0:01:23]}  Nxe3 {[%clk 0:02:10]} 17. Qa4 {[%clk 0:00:37]}  Nxf1+ {[%clk 0:01:54]} 18. Bxf1 {[%clk 0:00:33]}  Rab8 {[%clk 0:01:42]} 19. Be3 {[%clk 0:00:31]}  Rb2 {[%clk 0:01:34]} 20. Qxa7 {[%clk 0:00:14]}  Be4 {[%clk 0:01:32]} 21. Bg2 {[%clk 0:00:12]}  Bxg2 {[%clk 0:01:30]} 22. Kxg2 {[%clk 0:00:11]}  Qe4+ {[%clk 0:01:30]} 23. Kg1 {[%clk 0:00:11]}  Rfb8 {[%clk 0:01:31]} 24. Rf1 {[%clk 0:00:08]}  Rb1 {[%clk 0:01:28]} 25. Kh2 {[%clk 0:00:06]}  h6 {[%clk 0:01:19]} 26. Rxb1 {[%clk 0:00:04]}  Rxb1 {[%clk 0:01:18]} 27. g4 {[%clk 0:00:03]}  Qf3 {[%clk 0:01:17]} 28. Qa8+ {[%clk 0:00:01]}  Qxa8 {[%clk 0:01:16]} 0-1


[Site "https://www.chess.com"]

[Event "Titled Tuesday Blitz March 21 Late 2023"]
[White "Perez Rodriguez, Jennifer"]
[Black "Nazari, Arad"]
[WhiteFideId "3507831"]
[BlackFideId "12577324"]
[WhiteElo "2170"]
[BlackElo "2313"]
[Result "0-1"]
[Round "01"]
[TimeControl "180+2"]
[Date "2023.03.21"]
[WhiteClock "0:00:21"]
[BlackClock "0:00:13"]

1. e4 {[%clk 0:03:00]}  e6 {[%clk 0:02:59]} 2. d4 {[%clk 0:03:00]}  d5 {[%clk 0:03:00]} 3. Bd3 {[%clk 0:02:54]}  dxe4 {[%clk 0:02:58]} 4. Bxe4 {[%clk 0:02:55]}  Nf6 {[%clk 0:02:59]} 5. Bf3 {[%clk 0:02:55]}  c5 {[%clk 0:03:00]} 6. Ne2 {[%clk 0:02:56]}  Nc6 {[%clk 0:02:57]} 7. Be3 {[%clk 0:02:56]}  cxd4 {[%clk 0:02:57]} 8. Nxd4 {[%clk 0:02:57]}  Ne5 {[%clk 0:02:58]} 9. Nc3 {[%clk 0:02:58]}  Bb4 {[%clk 0:02:55]} 10. Nb5 {[%clk 0:02:57]}  Nxf3+ {[%clk 0:02:31]} 11. Qxf3 {[%clk 0:02:55]}  O-O {[%clk 0:02:28]} 12. a3 {[%clk 0:02:48]}  Qa5 {[%clk 0:02:03]} 13. O-O {[%clk 0:02:47]}  Bxc3 {[%clk 0:02:03]} 14. Nxc3 {[%clk 0:02:46]}  Qa6 {[%clk 0:01:42]} 15. Bg5 {[%clk 0:02:37]}  e5 {[%clk 0:01:30]} 16. Rfe1 {[%clk 0:02:25]}  h6 {[%clk 0:01:28]} 17. Bxf6 {[%clk 0:02:20]}  Qxf6 {[%clk 0:01:29]} 18. Qxf6 {[%clk 0:02:21]}  gxf6 {[%clk 0:01:30]} 19. Nd5 {[%clk 0:02:18]}  Kg7 {[%clk 0:01:29]} 20. Re3 {[%clk 0:02:18]}  Bf5 {[%clk 0:01:22]} 21. Rc3 {[%clk 0:01:52]}  Rfd8 {[%clk 0:01:05]} 22. Ne3 {[%clk 0:01:50]}  Be6 {[%clk 0:01:02]} 23. Kf1 {[%clk 0:01:33]}  Rac8 {[%clk 0:00:59]} 24. Rxc8 {[%clk 0:01:32]}  Rxc8 {[%clk 0:01:00]} 25. Ke2 {[%clk 0:01:28]}  f5 {[%clk 0:01:00]} 26. Kd2 {[%clk 0:01:17]}  f4 {[%clk 0:01:00]} 27. Nd1 {[%clk 0:01:16]}  Rd8+ {[%clk 0:00:55]} 28. Ke2 {[%clk 0:01:09]}  Bf5 {[%clk 0:00:46]} 29. Rc1 {[%clk 0:01:08]}  Kf6 {[%clk 0:00:41]} 30. f3 {[%clk 0:01:08]}  Be6 {[%clk 0:00:31]} 31. Nc3 {[%clk 0:01:06]}  Bf5 {[%clk 0:00:25]} 32. Ne4+ {[%clk 0:00:55]}  Bxe4 {[%clk 0:00:25]} 33. fxe4 {[%clk 0:00:56]}  Rd4 {[%clk 0:00:25]} 34. Kf3 {[%clk 0:00:57]}  Rd2 {[%clk 0:00:25]} 35. b4 {[%clk 0:00:55]}  h5 {[%clk 0:00:22]} 36. a4 {[%clk 0:00:55]}  Ke6 {[%clk 0:00:20]} 37. h3 {[%clk 0:00:54]}  f5 {[%clk 0:00:20]} 38. g3 {[%clk 0:00:42]}  fxe4+ {[%clk 0:00:20]} 39. Kxe4 {[%clk 0:00:43]}  fxg3 {[%clk 0:00:20]} 40. h4 {[%clk 0:00:42]}  g2 {[%clk 0:00:20]} 41. Ke3 {[%clk 0:00:40]}  Rxc2 {[%clk 0:00:20]} 42. Rg1 {[%clk 0:00:38]}  Kf5 {[%clk 0:00:21]} 43. Kf3 {[%clk 0:00:38]}  e4+ {[%clk 0:00:20]} 44. Ke3 {[%clk 0:00:38]}  Ke5 {[%clk 0:00:21]} 45. b5 {[%clk 0:00:34]}  b6 {[%clk 0:00:20]} 46. Rd1 {[%clk 0:00:33]}  Ra2 {[%clk 0:00:17]} 47. Rg1 {[%clk 0:00:34]}  Rc2 {[%clk 0:00:13]} 48. Re1 {[%clk 0:00:33]}  Rb2 {[%clk 0:00:12]} 49. Rg1 {[%clk 0:00:33]}  Ra2 {[%clk 0:00:12]} 50. Rb1 {[%clk 0:00:22]}  Rxa4 {[%clk 0:00:12]} 51. Kf2 {[%clk 0:00:23]}  Ra2+ {[%clk 0:00:13]} 52. Kg1 {[%clk 0:00:23]}  e3 {[%clk 0:00:12]} 53. Re1 {[%clk 0:00:23]}  Ke4 {[%clk 0:00:13]} 54. Rc1 {[%clk 0:00:24]}  Rd2 {[%clk 0:00:12]} 55. Rc7 {[%clk 0:00:24]}  e2 {[%clk 0:00:12]} 56. Re7+ {[%clk 0:00:24]}  Kd3 {[%clk 0:00:13]} 57. Rd7+ {[%clk 0:00:24]}  Kc2 {[%clk 0:00:13]} 58. Rc7+ {[%clk 0:00:21]}  Kd1 {[%clk 0:00:13]} 0-1


[Site "https://www.chess.com"]

[Event "Titled Tuesday Blitz March 21 Late 2023"]
[White "Mahdavi, Reza"]
[Black "Davidson, Kevin"]
[WhiteFideId "12595926"]
[BlackFideId "2056810"]
[WhiteElo "2208"]
[BlackElo "2151"]
[Result "1-0"]
[Round "01"]
[TimeControl "180+2"]
[Date "2023.03.21"]
[WhiteClock "0:00:34"]
[BlackClock "0:00:01"]

1. Nf3 {[%clk 0:02:46]}  Nf6 {[%clk 0:02:53]} 2. g3 {[%clk 0:02:45]}  g6 {[%clk 0:02:46]} 3. b3 {[%clk 0:02:45]}  Bg7 {[%clk 0:02:46]} 4. Bb2 {[%clk 0:02:46]}  O-O {[%clk 0:02:46]} 5. Bg2 {[%clk 0:02:46]}  d6 {[%clk 0:02:46]} 6. d4 {[%clk 0:02:46]}  e5 {[%clk 0:02:46]} 7. dxe5 {[%clk 0:02:46]}  Ng4 {[%clk 0:02:47]} 8. O-O {[%clk 0:02:45]}  Nc6 {[%clk 0:02:46]} 9. Qc1 {[%clk 0:02:44]}  dxe5 {[%clk 0:02:42]} 10. h3 {[%clk 0:02:42]}  Nh6 {[%clk 0:02:42]} 11. Rd1 {[%clk 0:02:38]}  Bd7 {[%clk 0:02:31]} 12. Nc3 {[%clk 0:02:13]}  Qc8 {[%clk 0:02:30]} 13. Kh2 {[%clk 0:02:05]}  Nf5 {[%clk 0:02:26]} 14. Nd5 {[%clk 0:01:49]}  Re8 {[%clk 0:02:19]} 15. e4 {[%clk 0:01:33]}  Nfd4 {[%clk 0:02:17]} 16. Ne1 {[%clk 0:01:26]}  h6 {[%clk 0:01:18]} 17. Qd2 {[%clk 0:01:17]}  Ne7 {[%clk 0:00:41]} 18. c3 {[%clk 0:01:09]}  Nxd5 {[%clk 0:00:23]} 19. cxd4 {[%clk 0:01:03]}  Nb6 {[%clk 0:00:22]} 20. Rac1 {[%clk 0:01:00]}  exd4 {[%clk 0:00:19]} 21. Bxd4 {[%clk 0:01:01]}  Bxd4 {[%clk 0:00:18]} 22. Qxd4 {[%clk 0:01:01]}  Bc6 {[%clk 0:00:18]} 23. Nd3 {[%clk 0:00:59]}  Qe6 {[%clk 0:00:16]} 24. Nf4 {[%clk 0:00:57]}  Qe5 {[%clk 0:00:15]} 25. Qd2 {[%clk 0:00:47]}  a5 {[%clk 0:00:10]} 26. Nd3 {[%clk 0:00:47]}  Qg7 {[%clk 0:00:10]} 27. Nc5 {[%clk 0:00:45]}  a4 {[%clk 0:00:05]} 28. b4 {[%clk 0:00:43]}  Qe5 {[%clk 0:00:03]} 29. Qxh6 {[%clk 0:00:43]}  Rad8 {[%clk 0:00:03]} 30. Qh4 {[%clk 0:00:42]}  Rxd1 {[%clk 0:00:02]} 31. Rxd1 {[%clk 0:00:43]}  Qb2 {[%clk 0:00:02]} 32. Rd8 {[%clk 0:00:38]}  Rxd8 {[%clk 0:00:01]} 33. Qxd8+ {[%clk 0:00:39]}  Kg7 {[%clk 0:00:02]} 34. Qxc7 {[%clk 0:00:39]}  Qxb4 {[%clk 0:00:02]} 35. Ne6+ {[%clk 0:00:39]}  Kf6 {[%clk 0:00:01]} 36. Nd8 {[%clk 0:00:38]}  Kg7 {[%clk 0:00:01]} 37. Qxf7+ {[%clk 0:00:38]}  Kh6 {[%clk 0:00:01]} 38. Ne6 {[%clk 0:00:36]}  Qd2 {[%clk 0:00:01]} 39. Qg7+ {[%clk 0:00:35]}  Kh5 {[%clk 0:00:01]} 40. Qh7+ {[%clk 0:00:34]} 1-0


[Site "https://www.chess.com"]

[Event "Titled Tuesday Blitz March 21 Late 2023"]
[White "Liu, Casper"]
[Black "Levitskiy, Andrey"]
[WhiteFideId "1454153"]
[BlackFideId "14132885"]
[WhiteElo "2221"]
[BlackElo "2335"]
[Result "0-1"]
[Round "01"]
[TimeControl "180+2"]
[Date "2023.03.21"]
[WhiteClock "0:01:26"]
[BlackClock "0:02:15"]

1. d4 {[%clk 0:03:00]}  Nf6 {[%clk 0:02:59]} 2. c4 {[%clk 0:03:01]}  e6 {[%clk 0:03:00]} 3. Nc3 {[%clk 0:03:02]}  Bb4 {[%clk 0:03:00]} 4. Qc2 {[%clk 0:03:02]}  d6 {[%clk 0:03:00]} 5. Nf3 {[%clk 0:03:02]}  Nbd7 {[%clk 0:03:00]} 6. a3 {[%clk 0:03:02]}  Bxc3+ {[%clk 0:02:59]} 7. Qxc3 {[%clk 0:03:03]}  a5 {[%clk 0:03:00]} 8. g3 {[%clk 0:03:02]}  a4 {[%clk 0:02:58]} 9. Bg2 {[%clk 0:03:02]}  O-O {[%clk 0:02:58]} 10. O-O {[%clk 0:03:03]}  Qe7 {[%clk 0:02:58]} 11. b4 {[%clk 0:02:56]}  axb3 {[%clk 0:02:50]} 12. Bb2 {[%clk 0:02:56]}  Nb6 {[%clk 0:02:48]} 13. Qxb3 {[%clk 0:02:56]}  Bd7 {[%clk 0:02:40]} 14. Rac1 {[%clk 0:02:45]}  Bc6 {[%clk 0:02:32]} 15. Qc2 {[%clk 0:02:14]}  Be4 {[%clk 0:02:29]} 16. Qd2 {[%clk 0:02:12]}  d5 {[%clk 0:02:28]} 17. Ne5 {[%clk 0:01:48]}  Bxg2 {[%clk 0:02:25]} 18. Kxg2 {[%clk 0:01:48]}  dxc4 {[%clk 0:02:23]} 19. Nxc4 {[%clk 0:01:49]}  Nxc4 {[%clk 0:02:21]} 20. Rxc4 {[%clk 0:01:50]}  c6 {[%clk 0:02:22]} 21. a4 {[%clk 0:01:34]}  Rfd8 {[%clk 0:02:21]} 22. a5 {[%clk 0:01:27]}  Qd7 {[%clk 0:02:16]} 23. Ra1 {[%clk 0:01:26]}  Qd5+ {[%clk 0:02:15]} 0-1


[Site "https://www.chess.com"]

[Event "Titled Tuesday Blitz March 21 Late 2023"]
[White "Toktomushev, Teimur"]
[Black "Bashirli, Nail"]
[WhiteFideId "14176726"]
[BlackFideId "13406809"]
[WhiteElo "2116"]
[BlackElo "2338"]
[Result "0-1"]
[Round "01"]
[TimeControl "180+2"]
[Date "2023.03.21"]
[WhiteClock "0:00:02"]
[BlackClock "0:01:11"]

1. d4 {[%clk 0:02:56]}  Nf6 {[%clk 0:03:00]} 2. c4 {[%clk 0:02:42]}  e6 {[%clk 0:03:01]} 3. Nf3 {[%clk 0:02:41]}  Bb4+ {[%clk 0:02:59]} 4. Bd2 {[%clk 0:02:41]}  Qe7 {[%clk 0:02:58]} 5. g3 {[%clk 0:02:38]}  O-O {[%clk 0:02:58]} 6. Bg2 {[%clk 0:02:38]}  Bxd2+ {[%clk 0:02:32]} 7. Qxd2 {[%clk 0:02:38]}  d6 {[%clk 0:02:33]} 8. O-O {[%clk 0:02:38]}  e5 {[%clk 0:02:29]} 9. Nc3 {[%clk 0:02:34]}  c6 {[%clk 0:02:27]} 10. e4 {[%clk 0:01:51]}  Bg4 {[%clk 0:02:22]} 11. Nh4 {[%clk 0:01:51]}  exd4 {[%clk 0:02:20]} 12. Qxd4 {[%clk 0:01:50]}  Na6 {[%clk 0:02:20]} 13. h3 {[%clk 0:01:45]}  Be6 {[%clk 0:02:05]} 14. b3 {[%clk 0:01:39]}  Rfe8 {[%clk 0:02:04]} 15. Rad1 {[%clk 0:01:37]}  Qc7 {[%clk 0:01:55]} 16. f4 {[%clk 0:01:20]}  Qa5 {[%clk 0:01:50]} 17. Rfe1 {[%clk 0:00:57]}  Rad8 {[%clk 0:01:40]} 18. g4 {[%clk 0:00:49]}  Nc5 {[%clk 0:01:30]} 19. Kh2 {[%clk 0:00:25]}  Bc8 {[%clk 0:01:28]} 20. Bf3 {[%clk 0:00:06]}  Ne6 {[%clk 0:01:26]} 21. Qe3 {[%clk 0:00:02]}  Nxf4 {[%clk 0:01:27]} 22. Qxf4 {[%clk 0:00:02]}  Qxc3 {[%clk 0:01:27]} 23. Re3 {[%clk 0:00:03]}  Qb2+ {[%clk 0:01:26]} 24. Re2 {[%clk 0:00:03]}  Qc3 {[%clk 0:01:27]} 25. Rxd6 {[%clk 0:00:03]}  Rxd6 {[%clk 0:01:16]} 26. Qxd6 {[%clk 0:00:04]}  g5 {[%clk 0:01:14]} 27. Nf5 {[%clk 0:00:02]}  Bxf5 {[%clk 0:01:14]} 28. gxf5 {[%clk 0:00:03]}  Qxf3 {[%clk 0:01:14]} 29. Rg2 {[%clk 0:00:02]}  Nxe4 {[%clk 0:01:12]} 30. Qh6 {[%clk 0:00:02]}  Qf4+ {[%clk 0:01:12]} 31. Kg1 {[%clk 0:00:01]}  Rd8 {[%clk 0:01:12]} 32. Re2 {[%clk 0:00:01]}  Rd1+ {[%clk 0:01:13]} 33. Kg2 {[%clk 0:00:02]}  Qg3# {[%clk 0:01:11]} 0-1


[Site "https://www.chess.com"]

[Event "Titled Tuesday Blitz March 21 Late 2023"]
[White "ArturoCaceres"]
[Black "Bilych, Olexiy"]
[BlackFideId "14156504"]
[WhiteElo "2388"]
[BlackElo "2320"]
[Result "0-1"]
[Round "01"]
[TimeControl "180+2"]
[Date "2023.03.21"]
[WhiteClock "0:00:01"]
[BlackClock "0:01:06"]

1. e4 {[%clk 0:02:49]}  c5 {[%clk 0:02:58]} 2. Nf3 {[%clk 0:02:40]}  e6 {[%clk 0:02:58]} 3. d4 {[%clk 0:02:37]}  cxd4 {[%clk 0:02:59]} 4. Nxd4 {[%clk 0:02:38]}  Nc6 {[%clk 0:03:00]} 5. Nc3 {[%clk 0:02:34]}  Qc7 {[%clk 0:02:59]} 6. Be2 {[%clk 0:02:32]}  a6 {[%clk 0:02:56]} 7. Be3 {[%clk 0:02:32]}  Nf6 {[%clk 0:02:54]} 8. O-O {[%clk 0:02:30]}  Be7 {[%clk 0:02:54]} 9. Kh1 {[%clk 0:02:28]}  d6 {[%clk 0:02:51]} 10. f4 {[%clk 0:02:28]}  O-O {[%clk 0:02:50]} 11. Qe1 {[%clk 0:02:28]}  Nxd4 {[%clk 0:02:49]} 12. Bxd4 {[%clk 0:02:28]}  b5 {[%clk 0:02:50]} 13. a3 {[%clk 0:02:25]}  Bb7 {[%clk 0:02:49]} 14. Bd3 {[%clk 0:02:23]}  Rad8 {[%clk 0:02:14]} 15. Qg3 {[%clk 0:02:20]}  g6 {[%clk 0:02:12]} 16. Rae1 {[%clk 0:01:44]}  Nh5 {[%clk 0:02:11]} 17. Qh3 {[%clk 0:01:39]}  Nxf4 {[%clk 0:02:10]} 18. Rxf4 {[%clk 0:01:28]}  e5 {[%clk 0:02:10]} 19. Nd5 {[%clk 0:01:09]}  Bxd5 {[%clk 0:02:02]} 20. exd5 {[%clk 0:01:10]}  exf4 {[%clk 0:01:57]} 21. Qh6 {[%clk 0:01:06]}  f6 {[%clk 0:01:44]} 22. Bxg6 {[%clk 0:01:00]}  hxg6 {[%clk 0:01:44]} 23. Qxg6+ {[%clk 0:01:00]}  Kh8 {[%clk 0:01:44]} 24. Re4 {[%clk 0:00:33]}  Qxc2 {[%clk 0:01:37]} 25. Qh6+ {[%clk 0:00:30]}  Kg8 {[%clk 0:01:37]} 26. Rxe7 {[%clk 0:00:28]}  Qb1+ {[%clk 0:01:28]} 27. Bg1 {[%clk 0:00:27]}  Rf7 {[%clk 0:01:28]} 28. Rxf7 {[%clk 0:00:20]}  Kxf7 {[%clk 0:01:29]} 29. Qxf4 {[%clk 0:00:15]}  Qd3 {[%clk 0:01:13]} 30. Qh4 {[%clk 0:00:06]}  Rg8 {[%clk 0:01:09]} 31. Qh5+ {[%clk 0:00:06]}  Ke7 {[%clk 0:01:06]} 32. h3 {[%clk 0:00:04]}  Qe4 {[%clk 0:01:05]} 33. Qf3 {[%clk 0:00:02]}  Qxf3 {[%clk 0:01:05]} 34. gxf3 {[%clk 0:00:03]}  Rg3 {[%clk 0:01:05]} 35. Kh2 {[%clk 0:00:02]}  Rxf3 {[%clk 0:01:05]} 36. Bd4 {[%clk 0:00:02]}  Rd3 {[%clk 0:01:05]} 37. Bg1 {[%clk 0:00:01]}  Rxd5 {[%clk 0:01:06]} 0-1


[Site "https://www.chess.com"]